{"text_format":"1","workbook":"xlsx","n_sheets":2,"sheets":["Roster","Personas"],"not_rendered":{"charts":0,"images":1,"macros":1,"external_links":0,"defined_names":1,"comments":0,"pivot_tables":0},"unopened":[],"bounds":{"document_bytes":16777216,"sheet_cells":100000,"rows_first":2000,"rows_last":500,"rows_between":2000,"halvings":0,"cell_chars":16384,"cell_head_chars":4096},"cells_cut":0,"cells_raw":0,"read":"whole","date_system":"1900"}

{"sheet":"Roster","index":0,"n_rows":600,"n_cols":32,"rows_kept":600,"cut":false,"hidden":false,"merged":[[1,9,1,11],[2,9,2,11],[3,9,3,11],[1,6,1,8],[2,6,2,8],[3,6,3,8]]}
[]
[null,null,null,null,null,null,"Company Name: ",null,null,null,null,null,null,null,null,null,"Address"]
[null,null,null,null,null,null,"DBA:",null,null,null,null,null,null,null,null,null,"City "]
[null,null,null,null,null,null,"Company NMLS: ",null,null,null,null,null,null,null,null,null,"State"]
[null,null,null,null,null,null,null,null,null,null,null,null,null,null,null,null,"Zip"]
[]
["First Name","Middle Name","Last Name","Suffix Name","Title","Use Company Address","Address","City","State","Zip","Email","Phone","Fax Number","Cell Phone","SSN","Disable Login","Login Email","Use Parent Info (Rate Sheet and Lock)","Rate Sheet Email","Rate Sheet Fax","Lock Info Email","Lock Info Fax","NMLS Originator ID","NMLS Current","Current Status","Watch List","Approval Status Date","Approval Date","Sales Rep Name","Sales Rep User ID","Personas","Note"]
[" "," "," ",null,null,null,{"$f":"IF(OR(A8=\"\",$R$2=\"\"),\"\",$R$2)","v":""},{"$f":"IF(OR(A8=\"\",$R$3=\"\"),\"\",$R$3)","v":""},{"$f":"IF(OR(A8=\"\",$R$4=\"\"),\"\",$R$4)","v":""},{"$f":"IF(OR(A8=\"\",$R$5=\"\"),\"\",$R$5)","v":""}," ",null,null,null,null,null,{"$f":"IF(OR(A8=\"\",K8=\"\"),\"\",K8)","v":" "},{"$f":"IF(A8=\"\",\"\",\"Yes\")","v":"Yes"},null,null,null,null," "]
[null,null,null,null,null,null,"","","","",null,null,null,null,null,null,{"$f":"IF(OR(A9=\"\",K9=\"\"),\"\",K9)","v":""},""]
[null,null,null,null,null,null,"","","","",null,null,null,null,null,null,"",""]
[null,null,null,null,null,null,"","","","",null,null,null,null,null,null,"",""]
[null,null,null,null,null,null,"","","","",null,null,null,null,null,null,"",""]
[null,null,null,null,null,null,"","","","",null,null,null,null,null,null,"",""]
[null,null,null,null,null,null,"","","","",null,null,null,null,null,null,"",""]
[null,null,null,null,null,null,"","","","",null,null,null,null,null,null,"",""]
[null,null,null,null,null,null,"","",{"$f":"IF(OR(A16=\"\",$R$4=\"\"),\"\",$R$4)","v":""},"",null,null,null,null,null,null,"",""]
[null,null,null,null,null,null,"","","",{"$f":"IF(OR(A17=\"\",$R$5=\"\"),\"\",$R$5)","v":""},null,null,null,null,null,null,"",""]
[null,null,null,null,null,null,"","","","",null,null,null,null,null,null,{"$f":"IF(OR(A18=\"\",K18=\"\"),\"\",K18)","v":""},""]
[null,null,null,null,null,null,"","","","",null,null,null,null,null,null,"",{"$f":"IF(A19=\"\",\"\",\"Yes\")","v":""}]
[null,null,null,null,null,null,"","","","",null,null,null,null,null,null,"",""]
[null,null,null,null,null,null,{"$f":"IF(OR(A21=\"\",$R$2=\"\"),\"\",$R$2)","v":""},{"$f":"IF(OR(A21=\"\",$R$3=\"\"),\"\",$R$3)","v":""},"","",null,null,null,null,null,null,"",""]
[null,null,null,null,null,null,"","","","",null,null,null,null,null,null,"",""]
[null,null,null,null,null,null,"","","","",null,null,null,null,null,null,"",""]
[null,null,null,null,null,null,"","","","",null,null,null,null,null,null,"",""]
[null,null,null,null,null,null,"","","","",null,null,null,null,null,null,"",""]
[null,null,null,null,null,null,"","","","",null,null,null,null,null,null,"",""]
[null,null,null,null,null,null,"","","","",null,null,null,null,null,null,"",""]
[null,null,null,null,null,null,"","","","",null,null,null,null,null,null,"",""]
[null,null,null,null,null,null,"","","","",null,null,null,null,null,null,"",""]
[null,null,null,null,null,null,"","","","",null,null,null,null,null,null,"",""]
[null,null,null,null,null,null,"","","","",null,null,null,null,null,null,"",""]
[null,null,null,null,null,null,"","","","",null,null,null,null,null,null,"",""]
[null,null,null,null,null,null,"","","","",null,null,null,null,null,null,"",""]
[null,null,null,null,null,null,"","","","",null,null,null,null,null,null,"",""]
[null,null,null,null,null,null,"","","","",null,null,null,null,null,null,"",""]
[null,null,null,null,null,null,"","","","",null,null,null,null,null,null,"",""]
[null,null,null,null,null,null,"","","","",null,null,null,null,null,null,"",""]
[null,null,null,null,null,null,"","","","",null,null,null,null,null,null,"",""]
[null,null,null,null,null,null,"","","","",null,null,null,null,null,null,"",""]
[null,null,null,null,null,null,"","","","",null,null,null,null,null,null,"",""]
[null,null,null,null,null,null,"","","","",null,null,null,null,null,null,"",""]
[null,null,null,null,null,null,"","","","",null,null,null,null,null,null,"",""]
[null,null,null,null,null,null,"","","","",null,null,null,null,null,null,"",""]
[null,null,null,null,null,null,"","","","",null,null,null,null,null,null,"",""]
[null,null,null,null,null,null,"","","","",null,null,null,null,null,null,"",""]
[null,null,null,null,null,null,"","","","",null,null,null,null,null,null,"",""]
[null,null,null,null,null,null,"","","","",null,null,null,null,null,null,"",""]
[null,null,null,null,null,null,"","","","",null,null,null,null,null,null,"",""]
[null,null,null,null,null,null,"","","","",null,null,null,null,null,null,"",""]
[null,null,null,null,null,null,"","","","",null,null,null,null,null,null,"",""]
[null,null,null,null,null,null,"","","","",null,null,null,null,null,null,"",""]
[null,null,null,null,null,null,"","","","",null,null,null,null,null,null,"",""]
[null,null,null,null,null,null,"","","","",null,null,null,null,null,null,"",""]
[null,null,null,null,null,null,"","","","",null,null,null,null,null,null,"",""]
[null,null,null,null,null,null,"","","","",null,null,null,null,null,null,"",""]
[null,null,null,null,null,null,"","","","",null,null,null,null,null,null,"",""]
[null,null,null,null,null,null,"","","","",null,null,null,null,null,null,"",""]
[null,null,null,null,null,null,"","","","",null,null,null,null,null,null,"",""]
[null,null,null,null,null,null,"","","","",null,null,null,null,null,null,"",""]
[null,null,null,null,null,null,"","","","",null,null,null,null,null,null,"",""]
[null,null,null,null,null,null,"","","","",null,null,null,null,null,null,"",""]
[null,null,null,null,null,null,"","","","",null,null,null,null,null,null,"",""]
[null,null,null,null,null,null,"","","","",null,null,null,null,null,null,"",""]
[null,null,null,null,null,null,"","","","",null,null,null,null,null,null,"",""]
[null,null,null,null,null,null,"","","","",null,null,null,null,null,null,"",""]
[null,null,null,null,null,null,"","","","",null,null,null,null,null,null,"",""]
[null,null,null,null,null,null,"","","","",null,null,null,null,null,null,"",""]
[null,null,null,null,null,null,"","","","",null,null,null,null,null,null,"",""]
[null,null,null,null,null,null,"","","","",null,null,null,null,null,null,"",""]
[null,null,null,null,null,null,"","","","",null,null,null,null,null,null,"",""]
[null,null,null,null,null,null,"","","","",null,null,null,null,null,null,"",""]
[null,null,null,null,null,null,"","","","",null,null,null,null,null,null,"",""]
[null,null,null,null,null,null,{"$f":"IF(OR(A73=\"\",$R$2=\"\"),\"\",$R$2)","v":""},{"$f":"IF(OR(A73=\"\",$R$3=\"\"),\"\",$R$3)","v":""},{"$f":"IF(OR(A73=\"\",$R$4=\"\"),\"\",$R$4)","v":""},{"$f":"IF(OR(A73=\"\",$R$5=\"\"),\"\",$R$5)","v":""},null,null,null,null,null,null,{"$f":"IF(OR(A73=\"\",K73=\"\"),\"\",K73)","v":""},{"$f":"IF(A73=\"\",\"\",\"Yes\")","v":""}]
[null,null,null,null,null,null,"","","","",null,null,null,null,null,null,"",""]
[null,null,null,null,null,null,"","","","",null,null,null,null,null,null,"",""]
[null,null,null,null,null,null,"","","","",null,null,null,null,null,null,"",""]
[null,null,null,null,null,null,"","","","",null,null,null,null,null,null,"",""]
[null,null,null,null,null,null,"","","","",null,null,null,null,null,null,"",""]
[null,null,null,null,null,null,"","","","",null,null,null,null,null,null,"",""]
[null,null,null,null,null,null,"","","","",null,null,null,null,null,null,"",""]
[null,null,null,null,null,null,"","","","",null,null,null,null,null,null,"",""]
[null,null,null,null,null,null,"","","","",null,null,null,null,null,null,"",""]
[null,null,null,null,null,null,"","","","",null,null,null,null,null,null,"",""]
[null,null,null,null,null,null,"","","","",null,null,null,null,null,null,"",""]
[null,null,null,null,null,null,"","","","",null,null,null,null,null,null,"",""]
[null,null,null,null,null,null,"","","","",null,null,null,null,null,null,"",""]
[null,null,null,null,null,null,"","","","",null,null,null,null,null,null,"",""]
[null,null,null,null,null,null,"","","","",null,null,null,null,null,null,"",""]
[null,null,null,null,null,null,"","","","",null,null,null,null,null,null,"",""]
[null,null,null,null,null,null,"","","","",null,null,null,null,null,null,"",""]
[null,null,null,null,null,null,"","","","",null,null,null,null,null,null,"",""]
[null,null,null,null,null,null,"","","","",null,null,null,null,null,null,"",""]
[null,null,null,null,null,null,"","","","",null,null,null,null,null,null,"",""]
[null,null,null,null,null,null,"","","","",null,null,null,null,null,null,"",""]
[null,null,null,null,null,null,"","","","",null,null,null,null,null,null,"",""]
[null,null,null,null,null,null,"","","","",null,null,null,null,null,null,"",""]
[null,null,null,null,null,null,"","","","",null,null,null,null,null,null,"",""]
[null,null,null,null,null,null,"","","","",null,null,null,null,null,null,"",""]
[null,null,null,null,null,null,"","","","",null,null,null,null,null,null,"",""]
[null,null,null,null,null,null,"","","","",null,null,null,null,null,null,"",""]
[null,null,null,null,null,null,"","","","",null,null,null,null,null,null,"",""]
[null,null,null,null,null,null,"","","","",null,null,null,null,null,null,"",""]
[null,null,null,null,null,null,"","","","",null,null,null,null,null,null,"",""]
[null,null,null,null,null,null,"","","","",null,null,null,null,null,null,"",""]
[null,null,null,null,null,null,"","","","",null,null,null,null,null,null,"",""]
[null,null,null,null,null,null,"","","","",null,null,null,null,null,null,"",""]
[null,null,null,null,null,null,"","","","",null,null,null,null,null,null,"",""]
[null,null,null,null,null,null,"","","","",null,null,null,null,null,null,"",""]
[null,null,null,null,null,null,"","","","",null,null,null,null,null,null,"",""]
[null,null,null,null,null,null,"","","","",null,null,null,null,null,null,"",""]
[null,null,null,null,null,null,"","","","",null,null,null,null,null,null,"",""]
[null,null,null,null,null,null,"","","","",null,null,null,null,null,null,"",""]
[null,null,null,null,null,null,"","","","",null,null,null,null,null,null,"",""]
[null,null,null,null,null,null,"","","","",null,null,null,null,null,null,"",""]
[null,null,null,null,null,null,"","","","",null,null,null,null,null,null,"",""]
[null,null,null,null,null,null,"","","","",null,null,null,null,null,null,"",""]
[null,null,null,null,null,null,"","","","",null,null,null,null,null,null,"",""]
[null,null,null,null,null,null,"","","","",null,null,null,null,null,null,"",""]
[null,null,null,null,null,null,"","","","",null,null,null,null,null,null,"",""]
[null,null,null,null,null,null,"","","","",null,null,null,null,null,null,"",""]
[null,null,null,null,null,null,"","","","",null,null,null,null,null,null,"",""]
[null,null,null,null,null,null,"","","","",null,null,null,null,null,null,"",""]
[null,null,null,null,null,null,"","","","",null,null,null,null,null,null,"",""]
[null,null,null,null,null,null,"","","","",null,null,null,null,null,null,"",""]
[null,null,null,null,null,null,"","","","",null,null,null,null,null,null,"",""]
[null,null,null,null,null,null,"","","","",null,null,null,null,null,null,"",""]
[null,null,null,null,null,null,"","","","",null,null,null,null,null,null,"",""]
[null,null,null,null,null,null,"","","","",null,null,null,null,null,null,"",""]
[null,null,null,null,null,null,"","","","",null,null,null,null,null,null,"",""]
[null,null,null,null,null,null,"","","","",null,null,null,null,null,null,"",""]
[null,null,null,null,null,null,"","","","",null,null,null,null,null,null,"",""]
[null,null,null,null,null,null,"","","","",null,null,null,null,null,null,"",""]
[null,null,null,null,null,null,"","","","",null,null,null,null,null,null,"",""]
[null,null,null,null,null,null,"","","","",null,null,null,null,null,null,"",""]
[null,null,null,null,null,null,"","","","",null,null,null,null,null,null,"",""]
[null,null,null,null,null,null,"","","","",null,null,null,null,null,null,"",""]
[null,null,null,null,null,null,{"$f":"IF(OR(A137=\"\",$R$2=\"\"),\"\",$R$2)","v":""},{"$f":"IF(OR(A137=\"\",$R$3=\"\"),\"\",$R$3)","v":""},{"$f":"IF(OR(A137=\"\",$R$4=\"\"),\"\",$R$4)","v":""},{"$f":"IF(OR(A137=\"\",$R$5=\"\"),\"\",$R$5)","v":""},null,null,null,null,null,null,{"$f":"IF(OR(A137=\"\",K137=\"\"),\"\",K137)","v":""},{"$f":"IF(A137=\"\",\"\",\"Yes\")","v":""}]
[null,null,null,null,null,null,"","","","",null,null,null,null,null,null,"",""]
[null,null,null,null,null,null,"","","","",null,null,null,null,null,null,"",""]
[null,null,null,null,null,null,"","","","",null,null,null,null,null,null,"",""]
[null,null,null,null,null,null,"","","","",null,null,null,null,null,null,"",""]
[null,null,null,null,null,null,"","","","",null,null,null,null,null,null,"",""]
[null,null,null,null,null,null,"","","","",null,null,null,null,null,null,"",""]
[null,null,null,null,null,null,"","","","",null,null,null,null,null,null,"",""]
[null,null,null,null,null,null,"","","","",null,null,null,null,null,null,"",""]
[null,null,null,null,null,null,"","","","",null,null,null,null,null,null,"",""]
[null,null,null,null,null,null,"","","","",null,null,null,null,null,null,"",""]
[null,null,null,null,null,null,"","","","",null,null,null,null,null,null,"",""]
[null,null,null,null,null,null,"","","","",null,null,null,null,null,null,"",""]
[null,null,null,null,null,null,"","","","",null,null,null,null,null,null,"",""]
[null,null,null,null,null,null,"","","","",null,null,null,null,null,null,"",""]
[null,null,null,null,null,null,"","","","",null,null,null,null,null,null,"",""]
[null,null,null,null,null,null,"","","","",null,null,null,null,null,null,"",""]
[null,null,null,null,null,null,"","","","",null,null,null,null,null,null,"",""]
[null,null,null,null,null,null,"","","","",null,null,null,null,null,null,"",""]
[null,null,null,null,null,null,"","","","",null,null,null,null,null,null,"",""]
[null,null,null,null,null,null,"","","","",null,null,null,null,null,null,"",""]
[null,null,null,null,null,null,"","","","",null,null,null,null,null,null,"",""]
[null,null,null,null,null,null,"","","","",null,null,null,null,null,null,"",""]
[null,null,null,null,null,null,"","","","",null,null,null,null,null,null,"",""]
[null,null,null,null,null,null,"","","","",null,null,null,null,null,null,"",""]
[null,null,null,null,null,null,"","","","",null,null,null,null,null,null,"",""]
[null,null,null,null,null,null,"","","","",null,null,null,null,null,null,"",""]
[null,null,null,null,null,null,"","","","",null,null,null,null,null,null,"",""]
[null,null,null,null,null,null,"","","","",null,null,null,null,null,null,"",""]
[null,null,null,null,null,null,"","","","",null,null,null,null,null,null,"",""]
[null,null,null,null,null,null,"","","","",null,null,null,null,null,null,"",""]
[null,null,null,null,null,null,"","","","",null,null,null,null,null,null,"",""]
[null,null,null,null,null,null,"","","","",null,null,null,null,null,null,"",""]
[null,null,null,null,null,null,"","","","",null,null,null,null,null,null,"",""]
[null,null,null,null,null,null,"","","","",null,null,null,null,null,null,"",""]
[null,null,null,null,null,null,"","","","",null,null,null,null,null,null,"",""]
[null,null,null,null,null,null,"","","","",null,null,null,null,null,null,"",""]
[null,null,null,null,null,null,"","","","",null,null,null,null,null,null,"",""]
[null,null,null,null,null,null,"","","","",null,null,null,null,null,null,"",""]
[null,null,null,null,null,null,"","","","",null,null,null,null,null,null,"",""]
[null,null,null,null,null,null,"","","","",null,null,null,null,null,null,"",""]
[null,null,null,null,null,null,"","","","",null,null,null,null,null,null,"",""]
[null,null,null,null,null,null,"","","","",null,null,null,null,null,null,"",""]
[null,null,null,null,null,null,"","","","",null,null,null,null,null,null,"",""]
[null,null,null,null,null,null,"","","","",null,null,null,null,null,null,"",""]
[null,null,null,null,null,null,"","","","",null,null,null,null,null,null,"",""]
[null,null,null,null,null,null,"","","","",null,null,null,null,null,null,"",""]
[null,null,null,null,null,null,"","","","",null,null,null,null,null,null,"",""]
[null,null,null,null,null,null,"","","","",null,null,null,null,null,null,"",""]
[null,null,null,null,null,null,"","","","",null,null,null,null,null,null,"",""]
[null,null,null,null,null,null,"","","","",null,null,null,null,null,null,"",""]
[null,null,null,null,null,null,"","","","",null,null,null,null,null,null,"",""]
[null,null,null,null,null,null,"","","","",null,null,null,null,null,null,"",""]
[null,null,null,null,null,null,"","","","",null,null,null,null,null,null,"",""]
[null,null,null,null,null,null,"","","","",null,null,null,null,null,null,"",""]
[null,null,null,null,null,null,"","","","",null,null,null,null,null,null,"",""]
[null,null,null,null,null,null,"","","","",null,null,null,null,null,null,"",""]
[null,null,null,null,null,null,"","","","",null,null,null,null,null,null,"",""]
[null,null,null,null,null,null,"","","","",null,null,null,null,null,null,"",""]
[null,null,null,null,null,null,"","","","",null,null,null,null,null,null,"",""]
[null,null,null,null,null,null,"","","","",null,null,null,null,null,null,"",""]
[null,null,null,null,null,null,"","","","",null,null,null,null,null,null,"",""]
[null,null,null,null,null,null,"","","","",null,null,null,null,null,null,"",""]
[null,null,null,null,null,null,"","","","",null,null,null,null,null,null,"",""]
[null,null,null,null,null,null,{"$f":"IF(OR(A201=\"\",$R$2=\"\"),\"\",$R$2)","v":""},{"$f":"IF(OR(A201=\"\",$R$3=\"\"),\"\",$R$3)","v":""},{"$f":"IF(OR(A201=\"\",$R$4=\"\"),\"\",$R$4)","v":""},{"$f":"IF(OR(A201=\"\",$R$5=\"\"),\"\",$R$5)","v":""},null,null,null,null,null,null,{"$f":"IF(OR(A201=\"\",K201=\"\"),\"\",K201)","v":""},{"$f":"IF(A201=\"\",\"\",\"Yes\")","v":""}]
[null,null,null,null,null,null,"","","","",null,null,null,null,null,null,"",""]
[null,null,null,null,null,null,"","","","",null,null,null,null,null,null,"",""]
[null,null,null,null,null,null,"","","","",null,null,null,null,null,null,"",""]
[null,null,null,null,null,null,"","","","",null,null,null,null,null,null,"",""]
[null,null,null,null,null,null,"","","","",null,null,null,null,null,null,"",""]
[null,null,null,null,null,null,"","","","",null,null,null,null,null,null,"",""]
[null,null,null,null,null,null,"","","","",null,null,null,null,null,null,"",""]
[null,null,null,null,null,null,"","","","",null,null,null,null,null,null,"",""]
[null,null,null,null,null,null,"","","","",null,null,null,null,null,null,"",""]
[null,null,null,null,null,null,"","","","",null,null,null,null,null,null,"",""]
[null,null,null,null,null,null,"","","","",null,null,null,null,null,null,"",""]
[null,null,null,null,null,null,"","","","",null,null,null,null,null,null,"",""]
[null,null,null,null,null,null,"","","","",null,null,null,null,null,null,"",""]
[null,null,null,null,null,null,"","","","",null,null,null,null,null,null,"",""]
[null,null,null,null,null,null,"","","","",null,null,null,null,null,null,"",""]
[null,null,null,null,null,null,"","","","",null,null,null,null,null,null,"",""]
[null,null,null,null,null,null,"","","","",null,null,null,null,null,null,"",""]
[null,null,null,null,null,null,"","","","",null,null,null,null,null,null,"",""]
[null,null,null,null,null,null,"","","","",null,null,null,null,null,null,"",""]
[null,null,null,null,null,null,"","","","",null,null,null,null,null,null,"",""]
[null,null,null,null,null,null,"","","","",null,null,null,null,null,null,"",""]
[null,null,null,null,null,null,"","","","",null,null,null,null,null,null,"",""]
[null,null,null,null,null,null,"","","","",null,null,null,null,null,null,"",""]
[null,null,null,null,null,null,"","","","",null,null,null,null,null,null,"",""]
[null,null,null,null,null,null,"","","","",null,null,null,null,null,null,"",""]
[null,null,null,null,null,null,"","","","",null,null,null,null,null,null,"",""]
[null,null,null,null,null,null,"","","","",null,null,null,null,null,null,"",""]
[null,null,null,null,null,null,"","","","",null,null,null,null,null,null,"",""]
[null,null,null,null,null,null,"","","","",null,null,null,null,null,null,"",""]
[null,null,null,null,null,null,"","","","",null,null,null,null,null,null,"",""]
[null,null,null,null,null,null,"","","","",null,null,null,null,null,null,"",""]
[null,null,null,null,null,null,"","","","",null,null,null,null,null,null,"",""]
[null,null,null,null,null,null,"","","","",null,null,null,null,null,null,"",""]
[null,null,null,null,null,null,"","","","",null,null,null,null,null,null,"",""]
[null,null,null,null,null,null,"","","","",null,null,null,null,null,null,"",""]
[null,null,null,null,null,null,"","","","",null,null,null,null,null,null,"",""]
[null,null,null,null,null,null,"","","","",null,null,null,null,null,null,"",""]
[null,null,null,null,null,null,"","","","",null,null,null,null,null,null,"",""]
[null,null,null,null,null,null,"","","","",null,null,null,null,null,null,"",""]
[null,null,null,null,null,null,"","","","",null,null,null,null,null,null,"",""]
[null,null,null,null,null,null,"","","","",null,null,null,null,null,null,"",""]
[null,null,null,null,null,null,"","","","",null,null,null,null,null,null,"",""]
[null,null,null,null,null,null,"","","","",null,null,null,null,null,null,"",""]
[null,null,null,null,null,null,"","","","",null,null,null,null,null,null,"",""]
[null,null,null,null,null,null,"","","","",null,null,null,null,null,null,"",""]
[null,null,null,null,null,null,"","","","",null,null,null,null,null,null,"",""]
[null,null,null,null,null,null,"","","","",null,null,null,null,null,null,"",""]
[null,null,null,null,null,null,"","","","",null,null,null,null,null,null,"",""]
[null,null,null,null,null,null,"","","","",null,null,null,null,null,null,"",""]
[null,null,null,null,null,null,"","","","",null,null,null,null,null,null,"",""]
[null,null,null,null,null,null,"","","","",null,null,null,null,null,null,"",""]
[null,null,null,null,null,null,"","","","",null,null,null,null,null,null,"",""]
[null,null,null,null,null,null,"","","","",null,null,null,null,null,null,"",""]
[null,null,null,null,null,null,"","","","",null,null,null,null,null,null,"",""]
[null,null,null,null,null,null,"","","","",null,null,null,null,null,null,"",""]
[null,null,null,null,null,null,"","","","",null,null,null,null,null,null,"",""]
[null,null,null,null,null,null,"","","","",null,null,null,null,null,null,"",""]
[null,null,null,null,null,null,"","","","",null,null,null,null,null,null,"",""]
[null,null,null,null,null,null,"","","","",null,null,null,null,null,null,"",""]
[null,null,null,null,null,null,"","","","",null,null,null,null,null,null,"",""]
[null,null,null,null,null,null,"","","","",null,null,null,null,null,null,"",""]
[null,null,null,null,null,null,"","","","",null,null,null,null,null,null,"",""]
[null,null,null,null,null,null,"","","","",null,null,null,null,null,null,"",""]
[null,null,null,null,null,null,{"$f":"IF(OR(A265=\"\",$R$2=\"\"),\"\",$R$2)","v":""},{"$f":"IF(OR(A265=\"\",$R$3=\"\"),\"\",$R$3)","v":""},{"$f":"IF(OR(A265=\"\",$R$4=\"\"),\"\",$R$4)","v":""},{"$f":"IF(OR(A265=\"\",$R$5=\"\"),\"\",$R$5)","v":""},null,null,null,null,null,null,{"$f":"IF(OR(A265=\"\",K265=\"\"),\"\",K265)","v":""},{"$f":"IF(A265=\"\",\"\",\"Yes\")","v":""}]
[null,null,null,null,null,null,"","","","",null,null,null,null,null,null,"",""]
[null,null,null,null,null,null,"","","","",null,null,null,null,null,null,"",""]
[null,null,null,null,null,null,"","","","",null,null,null,null,null,null,"",""]
[null,null,null,null,null,null,"","","","",null,null,null,null,null,null,"",""]
[null,null,null,null,null,null,"","","","",null,null,null,null,null,null,"",""]
[null,null,null,null,null,null,"","","","",null,null,null,null,null,null,"",""]
[null,null,null,null,null,null,"","","","",null,null,null,null,null,null,"",""]
[null,null,null,null,null,null,"","","","",null,null,null,null,null,null,"",""]
[null,null,null,null,null,null,"","","","",null,null,null,null,null,null,"",""]
[null,null,null,null,null,null,"","","","",null,null,null,null,null,null,"",""]
[null,null,null,null,null,null,"","","","",null,null,null,null,null,null,"",""]
[null,null,null,null,null,null,"","","","",null,null,null,null,null,null,"",""]
[null,null,null,null,null,null,"","","","",null,null,null,null,null,null,"",""]
[null,null,null,null,null,null,"","","","",null,null,null,null,null,null,"",""]
[null,null,null,null,null,null,"","","","",null,null,null,null,null,null,"",""]
[null,null,null,null,null,null,"","","","",null,null,null,null,null,null,"",""]
[null,null,null,null,null,null,"","","","",null,null,null,null,null,null,"",""]
[null,null,null,null,null,null,"","","","",null,null,null,null,null,null,"",""]
[null,null,null,null,null,null,"","","","",null,null,null,null,null,null,"",""]
[null,null,null,null,null,null,"","","","",null,null,null,null,null,null,"",""]
[null,null,null,null,null,null,"","","","",null,null,null,null,null,null,"",""]
[null,null,null,null,null,null,"","","","",null,null,null,null,null,null,"",""]
[null,null,null,null,null,null,"","","","",null,null,null,null,null,null,"",""]
[null,null,null,null,null,null,"","","","",null,null,null,null,null,null,"",""]
[null,null,null,null,null,null,"","","","",null,null,null,null,null,null,"",""]
[null,null,null,null,null,null,"","","","",null,null,null,null,null,null,"",""]
[null,null,null,null,null,null,"","","","",null,null,null,null,null,null,"",""]
[null,null,null,null,null,null,"","","","",null,null,null,null,null,null,"",""]
[null,null,null,null,null,null,"","","","",null,null,null,null,null,null,"",""]
[null,null,null,null,null,null,"","","","",null,null,null,null,null,null,"",""]
[null,null,null,null,null,null,"","","","",null,null,null,null,null,null,"",""]
[null,null,null,null,null,null,"","","","",null,null,null,null,null,null,"",""]
[null,null,null,null,null,null,"","","","",null,null,null,null,null,null,"",""]
[null,null,null,null,null,null,"","","","",null,null,null,null,null,null,"",""]
[null,null,null,null,null,null,"","","","",null,null,null,null,null,null,"",""]
[null,null,null,null,null,null,"","","","",null,null,null,null,null,null,"",""]
[null,null,null,null,null,null,"","","","",null,null,null,null,null,null,"",""]
[null,null,null,null,null,null,"","","","",null,null,null,null,null,null,"",""]
[null,null,null,null,null,null,"","","","",null,null,null,null,null,null,"",""]
[null,null,null,null,null,null,"","","","",null,null,null,null,null,null,"",""]
[null,null,null,null,null,null,"","","","",null,null,null,null,null,null,"",""]
[null,null,null,null,null,null,"","","","",null,null,null,null,null,null,"",""]
[null,null,null,null,null,null,"","","","",null,null,null,null,null,null,"",""]
[null,null,null,null,null,null,"","","","",null,null,null,null,null,null,"",""]
[null,null,null,null,null,null,"","","","",null,null,null,null,null,null,"",""]
[null,null,null,null,null,null,"","","","",null,null,null,null,null,null,"",""]
[null,null,null,null,null,null,"","","","",null,null,null,null,null,null,"",""]
[null,null,null,null,null,null,"","","","",null,null,null,null,null,null,"",""]
[null,null,null,null,null,null,"","","","",null,null,null,null,null,null,"",""]
[null,null,null,null,null,null,"","","","",null,null,null,null,null,null,"",""]
[null,null,null,null,null,null,"","","","",null,null,null,null,null,null,"",""]
[null,null,null,null,null,null,"","","","",null,null,null,null,null,null,"",""]
[null,null,null,null,null,null,"","","","",null,null,null,null,null,null,"",""]
[null,null,null,null,null,null,"","","","",null,null,null,null,null,null,"",""]
[null,null,null,null,null,null,"","","","",null,null,null,null,null,null,"",""]
[null,null,null,null,null,null,"","","","",null,null,null,null,null,null,"",""]
[null,null,null,null,null,null,"","","","",null,null,null,null,null,null,"",""]
[null,null,null,null,null,null,"","","","",null,null,null,null,null,null,"",""]
[null,null,null,null,null,null,"","","","",null,null,null,null,null,null,"",""]
[null,null,null,null,null,null,"","","","",null,null,null,null,null,null,"",""]
[null,null,null,null,null,null,"","","","",null,null,null,null,null,null,"",""]
[null,null,null,null,null,null,"","","","",null,null,null,null,null,null,"",""]
[null,null,null,null,null,null,"","","","",null,null,null,null,null,null,"",""]
[null,null,null,null,null,null,{"$f":"IF(OR(A329=\"\",$R$2=\"\"),\"\",$R$2)","v":""},{"$f":"IF(OR(A329=\"\",$R$3=\"\"),\"\",$R$3)","v":""},{"$f":"IF(OR(A329=\"\",$R$4=\"\"),\"\",$R$4)","v":""},{"$f":"IF(OR(A329=\"\",$R$5=\"\"),\"\",$R$5)","v":""},null,null,null,null,null,null,{"$f":"IF(OR(A329=\"\",K329=\"\"),\"\",K329)","v":""},{"$f":"IF(A329=\"\",\"\",\"Yes\")","v":""}]
[null,null,null,null,null,null,"","","","",null,null,null,null,null,null,"",""]
[null,null,null,null,null,null,"","","","",null,null,null,null,null,null,"",""]
[null,null,null,null,null,null,"","","","",null,null,null,null,null,null,"",""]
[null,null,null,null,null,null,"","","","",null,null,null,null,null,null,"",""]
[null,null,null,null,null,null,"","","","",null,null,null,null,null,null,"",""]
[null,null,null,null,null,null,"","","","",null,null,null,null,null,null,"",""]
[null,null,null,null,null,null,"","","","",null,null,null,null,null,null,"",""]
[null,null,null,null,null,null,"","","","",null,null,null,null,null,null,"",""]
[null,null,null,null,null,null,"","","","",null,null,null,null,null,null,"",""]
[null,null,null,null,null,null,"","","","",null,null,null,null,null,null,"",""]
[null,null,null,null,null,null,"","","","",null,null,null,null,null,null,"",""]
[null,null,null,null,null,null,"","","","",null,null,null,null,null,null,"",""]
[null,null,null,null,null,null,"","","","",null,null,null,null,null,null,"",""]
[null,null,null,null,null,null,"","","","",null,null,null,null,null,null,"",""]
[null,null,null,null,null,null,"","","","",null,null,null,null,null,null,"",""]
[null,null,null,null,null,null,"","","","",null,null,null,null,null,null,"",""]
[null,null,null,null,null,null,"","","","",null,null,null,null,null,null,"",""]
[null,null,null,null,null,null,"","","","",null,null,null,null,null,null,"",""]
[null,null,null,null,null,null,"","","","",null,null,null,null,null,null,"",""]
[null,null,null,null,null,null,"","","","",null,null,null,null,null,null,"",""]
[null,null,null,null,null,null,"","","","",null,null,null,null,null,null,"",""]
[null,null,null,null,null,null,"","","","",null,null,null,null,null,null,"",""]
[null,null,null,null,null,null,"","","","",null,null,null,null,null,null,"",""]
[null,null,null,null,null,null,"","","","",null,null,null,null,null,null,"",""]
[null,null,null,null,null,null,"","","","",null,null,null,null,null,null,"",""]
[null,null,null,null,null,null,"","","","",null,null,null,null,null,null,"",""]
[null,null,null,null,null,null,"","","","",null,null,null,null,null,null,"",""]
[null,null,null,null,null,null,"","","","",null,null,null,null,null,null,"",""]
[null,null,null,null,null,null,"","","","",null,null,null,null,null,null,"",""]
[null,null,null,null,null,null,"","","","",null,null,null,null,null,null,"",""]
[null,null,null,null,null,null,"","","","",null,null,null,null,null,null,"",""]
[null,null,null,null,null,null,"","","","",null,null,null,null,null,null,"",""]
[null,null,null,null,null,null,"","","","",null,null,null,null,null,null,"",""]
[null,null,null,null,null,null,"","","","",null,null,null,null,null,null,"",""]
[null,null,null,null,null,null,"","","","",null,null,null,null,null,null,"",""]
[null,null,null,null,null,null,"","","","",null,null,null,null,null,null,"",""]
[null,null,null,null,null,null,"","","","",null,null,null,null,null,null,"",""]
[null,null,null,null,null,null,"","","","",null,null,null,null,null,null,"",""]
[null,null,null,null,null,null,"","","","",null,null,null,null,null,null,"",""]
[null,null,null,null,null,null,"","","","",null,null,null,null,null,null,"",""]
[null,null,null,null,null,null,"","","","",null,null,null,null,null,null,"",""]
[null,null,null,null,null,null,"","","","",null,null,null,null,null,null,"",""]
[null,null,null,null,null,null,"","","","",null,null,null,null,null,null,"",""]
[null,null,null,null,null,null,"","","","",null,null,null,null,null,null,"",""]
[null,null,null,null,null,null,"","","","",null,null,null,null,null,null,"",""]
[null,null,null,null,null,null,"","","","",null,null,null,null,null,null,"",""]
[null,null,null,null,null,null,"","","","",null,null,null,null,null,null,"",""]
[null,null,null,null,null,null,"","","","",null,null,null,null,null,null,"",""]
[null,null,null,null,null,null,"","","","",null,null,null,null,null,null,"",""]
[null,null,null,null,null,null,"","","","",null,null,null,null,null,null,"",""]
[null,null,null,null,null,null,"","","","",null,null,null,null,null,null,"",""]
[null,null,null,null,null,null,"","","","",null,null,null,null,null,null,"",""]
[null,null,null,null,null,null,"","","","",null,null,null,null,null,null,"",""]
[null,null,null,null,null,null,"","","","",null,null,null,null,null,null,"",""]
[null,null,null,null,null,null,"","","","",null,null,null,null,null,null,"",""]
[null,null,null,null,null,null,"","","","",null,null,null,null,null,null,"",""]
[null,null,null,null,null,null,"","","","",null,null,null,null,null,null,"",""]
[null,null,null,null,null,null,"","","","",null,null,null,null,null,null,"",""]
[null,null,null,null,null,null,"","","","",null,null,null,null,null,null,"",""]
[null,null,null,null,null,null,"","","","",null,null,null,null,null,null,"",""]
[null,null,null,null,null,null,"","","","",null,null,null,null,null,null,"",""]
[null,null,null,null,null,null,"","","","",null,null,null,null,null,null,"",""]
[null,null,null,null,null,null,"","","","",null,null,null,null,null,null,"",""]
[null,null,null,null,null,null,{"$f":"IF(OR(A393=\"\",$R$2=\"\"),\"\",$R$2)","v":""},{"$f":"IF(OR(A393=\"\",$R$3=\"\"),\"\",$R$3)","v":""},{"$f":"IF(OR(A393=\"\",$R$4=\"\"),\"\",$R$4)","v":""},{"$f":"IF(OR(A393=\"\",$R$5=\"\"),\"\",$R$5)","v":""},null,null,null,null,null,null,{"$f":"IF(OR(A393=\"\",K393=\"\"),\"\",K393)","v":""},{"$f":"IF(A393=\"\",\"\",\"Yes\")","v":""}]
[null,null,null,null,null,null,"","","","",null,null,null,null,null,null,"",""]
[null,null,null,null,null,null,"","","","",null,null,null,null,null,null,"",""]
[null,null,null,null,null,null,"","","","",null,null,null,null,null,null,"",""]
[null,null,null,null,null,null,"","","","",null,null,null,null,null,null,"",""]
[null,null,null,null,null,null,"","","","",null,null,null,null,null,null,"",""]
[null,null,null,null,null,null,"","","","",null,null,null,null,null,null,"",""]
[null,null,null,null,null,null,"","","","",null,null,null,null,null,null,"",""]
[null,null,null,null,null,null,"","","","",null,null,null,null,null,null,"",""]
[null,null,null,null,null,null,"","","","",null,null,null,null,null,null,"",""]
[null,null,null,null,null,null,"","","","",null,null,null,null,null,null,"",""]
[null,null,null,null,null,null,"","","","",null,null,null,null,null,null,"",""]
[null,null,null,null,null,null,"","","","",null,null,null,null,null,null,"",""]
[null,null,null,null,null,null,"","","","",null,null,null,null,null,null,"",""]
[null,null,null,null,null,null,"","","","",null,null,null,null,null,null,"",""]
[null,null,null,null,null,null,"","","","",null,null,null,null,null,null,"",""]
[null,null,null,null,null,null,"","","","",null,null,null,null,null,null,"",""]
[null,null,null,null,null,null,"","","","",null,null,null,null,null,null,"",""]
[null,null,null,null,null,null,"","","","",null,null,null,null,null,null,"",""]
[null,null,null,null,null,null,"","","","",null,null,null,null,null,null,"",""]
[null,null,null,null,null,null,"","","","",null,null,null,null,null,null,"",""]
[null,null,null,null,null,null,"","","","",null,null,null,null,null,null,"",""]
[null,null,null,null,null,null,"","","","",null,null,null,null,null,null,"",""]
[null,null,null,null,null,null,"","","","",null,null,null,null,null,null,"",""]
[null,null,null,null,null,null,"","","","",null,null,null,null,null,null,"",""]
[null,null,null,null,null,null,"","","","",null,null,null,null,null,null,"",""]
[null,null,null,null,null,null,"","","","",null,null,null,null,null,null,"",""]
[null,null,null,null,null,null,"","","","",null,null,null,null,null,null,"",""]
[null,null,null,null,null,null,"","","","",null,null,null,null,null,null,"",""]
[null,null,null,null,null,null,"","","","",null,null,null,null,null,null,"",""]
[null,null,null,null,null,null,"","","","",null,null,null,null,null,null,"",""]
[null,null,null,null,null,null,"","","","",null,null,null,null,null,null,"",""]
[null,null,null,null,null,null,"","","","",null,null,null,null,null,null,"",""]
[null,null,null,null,null,null,"","","","",null,null,null,null,null,null,"",""]
[null,null,null,null,null,null,"","","","",null,null,null,null,null,null,"",""]
[null,null,null,null,null,null,"","","","",null,null,null,null,null,null,"",""]
[null,null,null,null,null,null,"","","","",null,null,null,null,null,null,"",""]
[null,null,null,null,null,null,"","","","",null,null,null,null,null,null,"",""]
[null,null,null,null,null,null,"","","","",null,null,null,null,null,null,"",""]
[null,null,null,null,null,null,"","","","",null,null,null,null,null,null,"",""]
[null,null,null,null,null,null,"","","","",null,null,null,null,null,null,"",""]
[null,null,null,null,null,null,"","","","",null,null,null,null,null,null,"",""]
[null,null,null,null,null,null,"","","","",null,null,null,null,null,null,"",""]
[null,null,null,null,null,null,"","","","",null,null,null,null,null,null,"",""]
[null,null,null,null,null,null,"","","","",null,null,null,null,null,null,"",""]
[null,null,null,null,null,null,"","","","",null,null,null,null,null,null,"",""]
[null,null,null,null,null,null,"","","","",null,null,null,null,null,null,"",""]
[null,null,null,null,null,null,"","","","",null,null,null,null,null,null,"",""]
[null,null,null,null,null,null,"","","","",null,null,null,null,null,null,"",""]
[null,null,null,null,null,null,"","","","",null,null,null,null,null,null,"",""]
[null,null,null,null,null,null,"","","","",null,null,null,null,null,null,"",""]
[null,null,null,null,null,null,"","","","",null,null,null,null,null,null,"",""]
[null,null,null,null,null,null,"","","","",null,null,null,null,null,null,"",""]
[null,null,null,null,null,null,"","","","",null,null,null,null,null,null,"",""]
[null,null,null,null,null,null,"","","","",null,null,null,null,null,null,"",""]
[null,null,null,null,null,null,"","","","",null,null,null,null,null,null,"",""]
[null,null,null,null,null,null,"","","","",null,null,null,null,null,null,"",""]
[null,null,null,null,null,null,"","","","",null,null,null,null,null,null,"",""]
[null,null,null,null,null,null,"","","","",null,null,null,null,null,null,"",""]
[null,null,null,null,null,null,"","","","",null,null,null,null,null,null,"",""]
[null,null,null,null,null,null,"","","","",null,null,null,null,null,null,"",""]
[null,null,null,null,null,null,"","","","",null,null,null,null,null,null,"",""]
[null,null,null,null,null,null,"","","","",null,null,null,null,null,null,"",""]
[null,null,null,null,null,null,"","","","",null,null,null,null,null,null,"",""]
[null,null,null,null,null,null,{"$f":"IF(OR(A457=\"\",$R$2=\"\"),\"\",$R$2)","v":""},{"$f":"IF(OR(A457=\"\",$R$3=\"\"),\"\",$R$3)","v":""},{"$f":"IF(OR(A457=\"\",$R$4=\"\"),\"\",$R$4)","v":""},{"$f":"IF(OR(A457=\"\",$R$5=\"\"),\"\",$R$5)","v":""},null,null,null,null,null,null,{"$f":"IF(OR(A457=\"\",K457=\"\"),\"\",K457)","v":""},{"$f":"IF(A457=\"\",\"\",\"Yes\")","v":""}]
[null,null,null,null,null,null,"","","","",null,null,null,null,null,null,"",""]
[null,null,null,null,null,null,"","","","",null,null,null,null,null,null,"",""]
[null,null,null,null,null,null,"","","","",null,null,null,null,null,null,"",""]
[null,null,null,null,null,null,"","","","",null,null,null,null,null,null,"",""]
[null,null,null,null,null,null,"","","","",null,null,null,null,null,null,"",""]
[null,null,null,null,null,null,"","","","",null,null,null,null,null,null,"",""]
[null,null,null,null,null,null,"","","","",null,null,null,null,null,null,"",""]
[null,null,null,null,null,null,"","","","",null,null,null,null,null,null,"",""]
[null,null,null,null,null,null,"","","","",null,null,null,null,null,null,"",""]
[null,null,null,null,null,null,"","","","",null,null,null,null,null,null,"",""]
[null,null,null,null,null,null,"","","","",null,null,null,null,null,null,"",""]
[null,null,null,null,null,null,"","","","",null,null,null,null,null,null,"",""]
[null,null,null,null,null,null,"","","","",null,null,null,null,null,null,"",""]
[null,null,null,null,null,null,"","","","",null,null,null,null,null,null,"",""]
[null,null,null,null,null,null,"","","","",null,null,null,null,null,null,"",""]
[null,null,null,null,null,null,"","","","",null,null,null,null,null,null,"",""]
[null,null,null,null,null,null,"","","","",null,null,null,null,null,null,"",""]
[null,null,null,null,null,null,"","","","",null,null,null,null,null,null,"",""]
[null,null,null,null,null,null,"","","","",null,null,null,null,null,null,"",""]
[null,null,null,null,null,null,"","","","",null,null,null,null,null,null,"",""]
[null,null,null,null,null,null,"","","","",null,null,null,null,null,null,"",""]
[null,null,null,null,null,null,"","","","",null,null,null,null,null,null,"",""]
[null,null,null,null,null,null,"","","","",null,null,null,null,null,null,"",""]
[null,null,null,null,null,null,"","","","",null,null,null,null,null,null,"",""]
[null,null,null,null,null,null,"","","","",null,null,null,null,null,null,"",""]
[null,null,null,null,null,null,"","","","",null,null,null,null,null,null,"",""]
[null,null,null,null,null,null,"","","","",null,null,null,null,null,null,"",""]
[null,null,null,null,null,null,"","","","",null,null,null,null,null,null,"",""]
[null,null,null,null,null,null,"","","","",null,null,null,null,null,null,"",""]
[null,null,null,null,null,null,"","","","",null,null,null,null,null,null,"",""]
[null,null,null,null,null,null,"","","","",null,null,null,null,null,null,"",""]
[null,null,null,null,null,null,"","","","",null,null,null,null,null,null,"",""]
[null,null,null,null,null,null,"","","","",null,null,null,null,null,null,"",""]
[null,null,null,null,null,null,"","","","",null,null,null,null,null,null,"",""]
[null,null,null,null,null,null,"","","","",null,null,null,null,null,null,"",""]
[null,null,null,null,null,null,"","","","",null,null,null,null,null,null,"",""]
[null,null,null,null,null,null,"","","","",null,null,null,null,null,null,"",""]
[null,null,null,null,null,null,"","","","",null,null,null,null,null,null,"",""]
[null,null,null,null,null,null,"","","","",null,null,null,null,null,null,"",""]
[null,null,null,null,null,null,"","","","",null,null,null,null,null,null,"",""]
[null,null,null,null,null,null,"","","","",null,null,null,null,null,null,"",""]
[null,null,null,null,null,null,"","","","",null,null,null,null,null,null,"",""]
[null,null,null,null,null,null,"","","","",null,null,null,null,null,null,"",""]
[null,null,null,null,null,null,"","","","",null,null,null,null,null,null,"",""]
[null,null,null,null,null,null,"","","","",null,null,null,null,null,null,"",""]
[null,null,null,null,null,null,"","","","",null,null,null,null,null,null,"",""]
[null,null,null,null,null,null,"","","","",null,null,null,null,null,null,"",""]
[null,null,null,null,null,null,"","","","",null,null,null,null,null,null,"",""]
[null,null,null,null,null,null,"","","","",null,null,null,null,null,null,"",""]
[null,null,null,null,null,null,"","","","",null,null,null,null,null,null,"",""]
[null,null,null,null,null,null,"","","","",null,null,null,null,null,null,"",""]
[null,null,null,null,null,null,"","","","",null,null,null,null,null,null,"",""]
[null,null,null,null,null,null,"","","","",null,null,null,null,null,null,"",""]
[null,null,null,null,null,null,"","","","",null,null,null,null,null,null,"",""]
[null,null,null,null,null,null,"","","","",null,null,null,null,null,null,"",""]
[null,null,null,null,null,null,"","","","",null,null,null,null,null,null,"",""]
[null,null,null,null,null,null,"","","","",null,null,null,null,null,null,"",""]
[null,null,null,null,null,null,"","","","",null,null,null,null,null,null,"",""]
[null,null,null,null,null,null,"","","","",null,null,null,null,null,null,"",""]
[null,null,null,null,null,null,"","","","",null,null,null,null,null,null,"",""]
[null,null,null,null,null,null,"","","","",null,null,null,null,null,null,"",""]
[null,null,null,null,null,null,"","","","",null,null,null,null,null,null,"",""]
[null,null,null,null,null,null,"","","","",null,null,null,null,null,null,"",""]
[null,null,null,null,null,null,{"$f":"IF(OR(A521=\"\",$R$2=\"\"),\"\",$R$2)","v":""},{"$f":"IF(OR(A521=\"\",$R$3=\"\"),\"\",$R$3)","v":""},{"$f":"IF(OR(A521=\"\",$R$4=\"\"),\"\",$R$4)","v":""},{"$f":"IF(OR(A521=\"\",$R$5=\"\"),\"\",$R$5)","v":""},null,null,null,null,null,null,{"$f":"IF(OR(A521=\"\",K521=\"\"),\"\",K521)","v":""},{"$f":"IF(A521=\"\",\"\",\"Yes\")","v":""}]
[null,null,null,null,null,null,"","","","",null,null,null,null,null,null,"",""]
[null,null,null,null,null,null,"","","","",null,null,null,null,null,null,"",""]
[null,null,null,null,null,null,"","","","",null,null,null,null,null,null,"",""]
[null,null,null,null,null,null,"","","","",null,null,null,null,null,null,"",""]
[null,null,null,null,null,null,"","","","",null,null,null,null,null,null,"",""]
[null,null,null,null,null,null,"","","","",null,null,null,null,null,null,"",""]
[null,null,null,null,null,null,"","","","",null,null,null,null,null,null,"",""]
[null,null,null,null,null,null,"","","","",null,null,null,null,null,null,"",""]
[null,null,null,null,null,null,"","","","",null,null,null,null,null,null,"",""]
[null,null,null,null,null,null,"","","","",null,null,null,null,null,null,"",""]
[null,null,null,null,null,null,"","","","",null,null,null,null,null,null,"",""]
[null,null,null,null,null,null,"","","","",null,null,null,null,null,null,"",""]
[null,null,null,null,null,null,"","","","",null,null,null,null,null,null,"",""]
[null,null,null,null,null,null,"","","","",null,null,null,null,null,null,"",""]
[null,null,null,null,null,null,"","","","",null,null,null,null,null,null,"",""]
[null,null,null,null,null,null,"","","","",null,null,null,null,null,null,"",""]
[null,null,null,null,null,null,"","","","",null,null,null,null,null,null,"",""]
[null,null,null,null,null,null,"","","","",null,null,null,null,null,null,"",""]
[null,null,null,null,null,null,"","","","",null,null,null,null,null,null,"",""]
[null,null,null,null,null,null,"","","","",null,null,null,null,null,null,"",""]
[null,null,null,null,null,null,"","","","",null,null,null,null,null,null,"",""]
[null,null,null,null,null,null,"","","","",null,null,null,null,null,null,"",""]
[null,null,null,null,null,null,"","","","",null,null,null,null,null,null,"",""]
[null,null,null,null,null,null,"","","","",null,null,null,null,null,null,"",""]
[null,null,null,null,null,null,"","","","",null,null,null,null,null,null,"",""]
[null,null,null,null,null,null,"","","","",null,null,null,null,null,null,"",""]
[null,null,null,null,null,null,"","","","",null,null,null,null,null,null,"",""]
[null,null,null,null,null,null,"","","","",null,null,null,null,null,null,"",""]
[null,null,null,null,null,null,"","","","",null,null,null,null,null,null,"",""]
[null,null,null,null,null,null,"","","","",null,null,null,null,null,null,"",""]
[null,null,null,null,null,null,"","","","",null,null,null,null,null,null,"",""]
[null,null,null,null,null,null,"","","","",null,null,null,null,null,null,"",""]
[null,null,null,null,null,null,"","","","",null,null,null,null,null,null,"",""]
[null,null,null,null,null,null,"","","","",null,null,null,null,null,null,"",""]
[null,null,null,null,null,null,"","","","",null,null,null,null,null,null,"",""]
[null,null,null,null,null,null,"","","","",null,null,null,null,null,null,"",""]
[null,null,null,null,null,null,"","","","",null,null,null,null,null,null,"",""]
[null,null,null,null,null,null,"","","","",null,null,null,null,null,null,"",""]
[null,null,null,null,null,null,"","","","",null,null,null,null,null,null,"",""]
[null,null,null,null,null,null,"","","","",null,null,null,null,null,null,"",""]
[null,null,null,null,null,null,"","","","",null,null,null,null,null,null,"",""]
[null,null,null,null,null,null,"","","","",null,null,null,null,null,null,"",""]
[null,null,null,null,null,null,"","","","",null,null,null,null,null,null,"",""]
[null,null,null,null,null,null,"","","","",null,null,null,null,null,null,"",""]
[null,null,null,null,null,null,"","","","",null,null,null,null,null,null,"",""]
[null,null,null,null,null,null,"","","","",null,null,null,null,null,null,"",""]
[null,null,null,null,null,null,"","","","",null,null,null,null,null,null,"",""]
[null,null,null,null,null,null,"","","","",null,null,null,null,null,null,"",""]
[null,null,null,null,null,null,"","","","",null,null,null,null,null,null,"",""]
[null,null,null,null,null,null,"","","","",null,null,null,null,null,null,"",""]
[null,null,null,null,null,null,"","","","",null,null,null,null,null,null,"",""]
[null,null,null,null,null,null,"","","","",null,null,null,null,null,null,"",""]
[null,null,null,null,null,null,"","","","",null,null,null,null,null,null,"",""]
[null,null,null,null,null,null,"","","","",null,null,null,null,null,null,"",""]
[null,null,null,null,null,null,"","","","",null,null,null,null,null,null,"",""]
[null,null,null,null,null,null,"","","","",null,null,null,null,null,null,"",""]
[null,null,null,null,null,null,"","","","",null,null,null,null,null,null,"",""]
[null,null,null,null,null,null,"","","","",null,null,null,null,null,null,"",""]
[null,null,null,null,null,null,"","","","",null,null,null,null,null,null,"",""]
[null,null,null,null,null,null,"","","","",null,null,null,null,null,null,"",""]
[null,null,null,null,null,null,"","","","",null,null,null,null,null,null,"",""]
[null,null,null,null,null,null,"","","","",null,null,null,null,null,null,"",""]
[null,null,null,null,null,null,"","","","",null,null,null,null,null,null,"",""]
[null,null,null,null,null,null,{"$f":"IF(OR(A585=\"\",$R$2=\"\"),\"\",$R$2)","v":""},{"$f":"IF(OR(A585=\"\",$R$3=\"\"),\"\",$R$3)","v":""},{"$f":"IF(OR(A585=\"\",$R$4=\"\"),\"\",$R$4)","v":""},{"$f":"IF(OR(A585=\"\",$R$5=\"\"),\"\",$R$5)","v":""},null,null,null,null,null,null,{"$f":"IF(OR(A585=\"\",K585=\"\"),\"\",K585)","v":""},{"$f":"IF(A585=\"\",\"\",\"Yes\")","v":""}]
[null,null,null,null,null,null,"","","","",null,null,null,null,null,null,"",""]
[null,null,null,null,null,null,"","","","",null,null,null,null,null,null,"",""]
[null,null,null,null,null,null,"","","","",null,null,null,null,null,null,"",""]
[null,null,null,null,null,null,"","","","",null,null,null,null,null,null,"",""]
[null,null,null,null,null,null,"","","","",null,null,null,null,null,null,"",""]
[null,null,null,null,null,null,"","","","",null,null,null,null,null,null,"",""]
[null,null,null,null,null,null,"","","","",null,null,null,null,null,null,"",""]
[null,null,null,null,null,null,"","","","",null,null,null,null,null,null,"",""]
[null,null,null,null,null,null,"","","","",null,null,null,null,null,null,"",""]
[null,null,null,null,null,null,"","","","",null,null,null,null,null,null,"",""]
[null,null,null,null,null,null,"","","","",null,null,null,null,null,null,"",""]
[null,null,null,null,null,null,"","","","",null,null,null,null,null,null,"",""]
[null,null,null,null,null,null,"","","","",null,null,null,null,null,null,"",""]
[null,null,null,null,null,null,"","","","",null,null,null,null,null,null,"",""]
["Stinky"," ","Goblin",null,null,"Yes ",{"$f":"IF(OR(A600=\"\",$R$2=\"\"),\"\",$R$2)","v":""},{"$f":"IF(OR(A600=\"\",$R$3=\"\"),\"\",$R$3)","v":""},{"$f":"IF(OR(A600=\"\",$R$4=\"\"),\"\",$R$4)","v":""},{"$f":"IF(OR(A600=\"\",$R$5=\"\"),\"\",$R$5)","v":""},"Joe.Mills@changewholesale.com","623-204-5082",null,null,null,null,{"$f":"IF(A600=\"\",\"\",K600)","v":"Joe.Mills@changewholesale.com"},"Yes",null,null,null,null," "]

{"sheet":"Personas","index":1,"n_rows":4,"n_cols":1,"rows_kept":4,"cut":false,"hidden":false,"merged":[]}
["PersonaNames"]
["*TPO Broker Admin"]
["*TPO Loan Officer"]
["*TPO Loan Processor"]